bitfinex/quotes_SOLUSD_20241126
["timestamp","ask_amount","ask_price","bid_price","bid_amount"]
[1732605605182,23.776884,236.67,236.44,4.2292]
[1732605605183,26.34490995,236.5,236.44,4.2292]
[1732605605584,26.34490995,236.5,236.42,30.57460995]
[1732605605901,26.34490995,236.54,236.46,26.34490995]
[1732605606296,26.34490995,236.52,236.45,4.2292]
[1732605606804,26.34490995,236.56,236.48,26.34490995]
[1732605607306,26.34490995,236.56,236.46,26.34490995]
[1732605607510,4.226,236.63,236.46,26.34490995]
[1732605607511,26.34490995,236.54,236.46,26.34490995]
[1732605607682,26.34490995,236.6,236.45,4.2292]
[1732605607683,26.34490995,236.52,236.47,20.0]
[1732605607887,26.34490995,236.52,236.45,24.2292]
[1732605608098,26.34490995,236.52,236.45,4.2292]
[1732605608412,26.34490995,236.54,236.46,26.34490995]
[1732605608601,23.776884,236.57,236.5,26.34490995]
[1732605608908,26.34490995,236.58,236.5,26.34490995]
[1732605609113,26.34490995,236.6,236.52,26.34490995]
[1732605609409,53.46940995,236.73,236.45,24.8022]
[1732605609410,26.34490995,236.56,236.48,26.34490995]
[1732605609708,26.34490995,236.56,236.51,20.0]
[1732605609891,26.34490995,236.52,236.45,4.2292]
[1732605610093,26.34490995,236.5,236.45,4.2292]
[1732605611012,26.34490995,236.5,236.43,4.2295]
[1732605611213,26.34490995,236.52,236.43,4.2295]
[1732605611405,26.34490995,236.52,236.47,20.0]
[1732605611716,26.34490995,236.5,236.45,20.0]
[1732605612088,26.34490995,236.5,236.46,4.229]
[1732605613520,26.34490995,236.52,236.44,4.2293]
[1732605613693,23.776884,236.51,236.44,4.2293]
[1732605613893,26.34490995,236.52,236.45,20.0]
[1732605614402,26.34490995,236.52,236.46,4.229]
[1732605614615,26.34490995,236.57,236.5,26.34490995]
[1732605614814,26.34490995,236.59,236.5,26.34490995]
[1732605615188,26.34490995,236.59,236.52,26.34490995]
[1732605615588,4.2252,236.68,236.55,20.0]
[1732605615589,26.34490995,236.61,236.55,20.0]
[1732605615813,180.40880995,236.73,236.56,26.34490995]
[1732605615814,26.34490995,236.63,236.56,26.34490995]
[1732605615989,26.34490995,236.68,236.6,26.34490995]
[1732605616194,26.34490995,236.69,236.61,26.34490995]
[1732605616394,26.34490995,236.69,236.53,15.969]
[1732605616395,26.34490995,236.71,236.64,20.0]
[1732605616692,4.2235,236.78,236.66,20.0]
[1732605616693,26.34490995,236.69,236.66,20.0]
[1732605616890,26.34490995,236.67,236.62,4.2261]
[1732605617090,26.34490995,236.67,236.62,24.2261]
[1732605617318,26.34490995,236.69,236.62,24.2261]
[1732605617497,26.34490995,236.69,236.64,20.0]
[1732605617824,26.34490995,236.65,236.6,4.2264]
[1732605618001,26.34490995,236.65,236.6,24.2264]
[1732605619521,26.34490995,236.67,236.6,24.2264]
[1732605619896,26.34490995,236.69,236.62,20.0]
[1732605620099,26.34490995,236.69,236.6,24.2264]
[1732605620100,26.34490995,236.65,236.6,4.2264]
[1732605620419,26.34490995,236.65,236.61,20.0]
[1732605620718,26.34490995,236.63,236.61,20.0]
[1732605620918,26.34490995,236.63,236.54,4.2276]
[1732605621125,26.34490995,236.57,236.5,4.2283]
[1732605621314,26.34490995,236.55,236.5,4.2283]
[1732605622499,23.776884,236.6,236.52,4.2279]
[1732605622701,26.34490995,236.63,236.55,26.34490995]
[1732605622901,26.34490995,236.67,236.59,26.34490995]
[1732605623198,26.34490995,236.69,236.61,26.34490995]
[1732605623394,26.34490995,236.69,236.53,20.0]
[1732605623395,26.34490995,236.71,236.63,26.34490995]
[1732605623627,26.34490995,236.73,236.66,19.0]
[1732605624319,16.1211,236.84,236.67,26.34490995]
[1732605624320,26.34490995,236.75,236.67,26.34490995]
[1732605624521,36.89970995,236.86,236.71,4.2245]
[1732605624522,26.34490995,236.78,236.71,4.2245]
[1732605625327,26.34490995,236.8,236.72,26.34490995]
[1732605625733,26.34490995,236.8,236.73,4.2242]
[1732605626028,26.34490995,236.78,236.71,4.2245]
[1732605626223,26.34490995,236.8,236.72,26.34490995]
[1732605626413,26.34490995,236.82,236.74,26.34490995]
[1732605627501,26.34490995,236.8,236.75,20.0]
[1732605628329,26.34490995,236.82,236.75,20.0]
[1732605628499,26.34490995,236.84,236.76,30.56850995]
[1732605628933,26.34490995,236.82,236.77,20.0]
[1732605629431,26.34490995,236.82,236.74,30.56880995]
[1732605629628,26.34490995,236.8,236.72,26.34490995]
[1732605629820,26.34490995,236.76,236.68,26.34490995]
[1732605630005,26.34490995,236.78,236.7,26.34490995]
[1732605630333,26.34490995,236.82,236.74,26.34490995]
[1732605630637,26.34490995,236.82,236.75,4.2238]
[1732605631306,26.34490995,236.84,236.76,26.34490995]
[1732605632437,26.34490995,236.84,236.77,4.2235]
[1732605632923,26.34490995,236.86,236.79,20.0]
[1732605633135,26.34490995,236.86,236.8,26.34490995]
[1732605633629,26.34490995,236.86,236.78,26.34490995]
[1732605634009,26.34490995,236.9,236.83,26.34490995]
[1732605634327,25.1421,237.0,236.86,4.2219]
[1732605634328,26.34490995,236.92,236.86,4.2219]
[1732605634506,15.1421,237.0,236.88,26.34490995]
[1732605634507,26.34490995,236.96,236.88,26.34490995]
[1732605635017,26.34490995,236.95,236.87,26.34490995]
[1732605635618,26.34490995,236.99,236.91,46.34490995]
[1732605635807,26.34490995,237.0,236.93,26.34490995]
[1732605636008,26.34490995,237.04,236.91,20.0]
[1732605636213,26.34490995,237.08,237.0,26.34490995]
[1732605636934,26.34490995,237.04,236.96,26.34490995]
[1732605637133,26.34490995,236.98,236.91,20.0]
[1732605637311,26.34490995,236.95,236.91,20.0]
[1732605637506,20.0,237.09,236.91,20.0]
[1732605637507,26.34490995,236.97,236.91,20.0]
[1732605637812,26.34490995,236.93,236.88,4.2214]
[1732605638017,26.34490995,236.91,236.85,4.2219]
[1732605638331,26.34490995,236.91,236.84,16.1592]
[1732605638332,42.75190086,236.91,236.84,4.2221]
[1732605638516,42.75190086,236.93,236.85,42.75190086]
[1732605639123,42.75190086,236.87,236.79,42.75190086]
[1732605639323,42.75190086,236.85,236.77,42.75190086]
[1732605639506,42.75190086,236.85,236.7,16.1592]
[1732605639507,42.75190086,236.87,236.79,42.75190086]
[1732605639709,23.776884,236.86,236.8,4.2229]
[1732605640407,42.75190086,236.89,236.81,42.75190086]
[1732605640633,42.75190086,236.92,236.85,42.75190086]
[1732605640816,23.776884,236.91,236.85,42.75190086]
[1732605641129,23.776884,236.91,236.83,42.75190086]
[1732605641336,23.776884,236.91,236.85,42.75190086]
[1732605641535,42.75190086,236.92,236.86,4.2219]
[1732605641719,42.75190086,236.94,236.87,42.75190086]
[1732605641910,42.75190086,236.94,236.86,4.2219]
[1732605642111,2.47049914,236.93,236.88,20.0]
[1732605642324,2.47049914,236.9,236.88,20.0]
[1732605642625,2.47049914,236.9,236.89,20.0]
[1732605642835,2.47049914,236.9,236.88,20.0]
[1732605643623,2.47049914,236.88,236.86,24.2218]
[1732605643827,2.47049914,236.88,236.86,20.0]
[1732605644019,2.47049914,236.87,236.78,10.5583]
[1732605644226,2.47049914,236.83,236.78,4.2232]
[1732605644427,2.47049914,236.83,236.79,42.75190086]
[1732605644932,2.47049914,236.8,236.76,4.2236]
[1732605646023,2.47049914,236.77,236.73,4.2242]
[1732605646414,45.2224,236.79,236.73,4.2242]
[1732605646620,2.47049914,236.79,236.75,42.75190086]
[1732605647018,23.776884,236.8,236.75,42.75190086]
[1732605647214,2.47049914,236.79,236.75,42.75190086]
[1732605647437,2.47049914,236.81,236.77,42.75190086]
[1732605647625,2.47049914,236.79,236.76,4.2235]
[1732605647825,2.47049914,236.78,236.74,4.2239]
[1732605648030,45.2224,236.81,236.74,4.2239]
[1732605648340,2.47049914,236.78,236.74,4.2239]
[1732605649744,2.47049914,236.82,236.77,42.75190086]
[1732605649944,2.47049914,236.84,236.79,42.75190086]
[1732605650111,2.47049914,236.86,236.81,42.75190086]
[1732605650819,2.47049914,236.84,236.77,42.75190086]
[1732605651015,2.47049914,236.82,236.77,62.75190086]
[1732605651222,2.47049914,236.8,236.78,20.0]
[1732605651637,2.47049914,236.78,236.72,42.75190086]
[1732605651819,2.47049914,236.76,236.71,4.2245]
[1732605652027,42.75190086,236.86,236.61,10.0]
[1732605652028,2.47049914,236.73,236.68,4.2249]
[1732605652438,2.47049914,236.71,236.66,46.97720086]
[1732605653125,2.47049914,236.69,236.64,46.97750086]
[1732605653454,2.47049914,236.67,236.64,4.2256]
[1732605653944,2.47049914,236.67,236.6,42.75190086]
[1732605654243,2.47049914,236.62,236.58,42.75190086]
[1732605654542,2.47049914,236.64,236.58,42.75190086]
[1732605654741,2.47049914,236.66,236.62,42.75190086]
[1732605655343,2.47049914,236.69,236.64,42.75190086]
[1732605655642,2.47049914,236.73,236.66,42.75190086]
[1732605655830,2.47049914,236.73,236.68,42.75190086]
[1732605656023,45.2224,236.76,236.69,4.2249]
[1732605656239,2.47049914,236.73,236.69,4.2249]
[1732605656434,2.47049914,236.71,236.7,20.0]
[1732605656839,2.47049914,236.73,236.7,20.0]
[1732605657045,2.47049914,236.71,236.7,20.0]
[1732605657218,2.47049914,236.71,236.68,20.0]
[1732605657535,23.776884,236.73,236.68,20.0]
[1732605657746,2.47049914,236.71,236.68,62.75190086]
[1732605658638,2.47049914,236.76,236.7,42.75190086]
[1732605658835,2.47049914,236.74,236.68,62.75190086]
[1732605659047,2.47049914,236.74,236.71,20.0]
[1732605659233,2.47049914,236.73,236.71,20.0]
[1732605659552,2.47049914,236.73,236.72,20.0]
[1732605659930,2.47049914,236.76,236.72,20.0]
[1732605660241,2.47049914,236.74,236.71,20.0]
[1732605660646,2.47049914,236.76,236.71,20.0]
[1732605660830,2.47049914,236.73,236.72,20.0]
[1732605661025,2.47049914,236.73,236.66,10.5636]
[1732605661026,2.47049914,236.7,236.66,42.75190086]
[1732605661223,2.47049914,236.7,236.67,4.2252]
[1732605662020,2.47049914,236.69,236.62,42.75190086]
[1732605662225,2.47049914,236.72,236.64,42.75190086]
[1732605662425,2.47049914,236.68,236.62,46.97800086]
[1732605663548,2.47049914,236.7,236.64,42.75190086]
[1732605663755,2.47049914,236.7,236.66,42.75190086]
[1732605665039,2.47049914,236.71,236.7,20.0]
[1732605665249,2.47049914,236.73,236.7,66.97660086]
[1732605665424,2.47049914,236.79,236.75,20.0]
[1732605665631,2.47049914,236.79,236.75,62.75190086]
[1732605665933,2.47049914,236.78,236.76,20.0]
[1732605666855,16.6259,236.84,236.76,20.0]
[1732605666856,2.47049914,236.79,236.76,42.75190086]
[1732605667158,2.47049914,236.77,236.73,62.75190086]
[1732605667330,2.47049914,236.77,236.74,4.224]
[1732605668043,45.2224,236.77,236.74,20.0]
[1732605668349,45.2224,236.79,236.74,20.0]
[1732605668524,16.6259,236.75,236.65,7.52950086]
[1732605668729,16.6259,236.75,236.55,4.2274]
[1732605668730,2.47049914,236.6,236.55,4.2274]
[1732605668946,2.47049914,236.58,236.51,46.98000086]
[1732605669148,2.47049914,236.56,236.51,4.2281]
[1732605669362,2.47049914,236.54,236.51,4.2281]
[1732605669543,42.75190086,236.59,236.51,46.98000086]
[1732605669850,2.47049914,236.59,236.53,42.75190086]
[1732605670052,2.47049914,236.59,236.51,4.2281]
[1732605670053,42.75190086,236.59,236.51,46.98000086]
[1732605670237,2.47049914,236.53,236.47,42.75190086]
[1732605670429,45.2224,236.53,236.46,4.229]
[1732605670642,45.2224,236.53,236.49,15.0]
[1732605671755,2.47049914,236.53,236.49,19.2284]
[1732605672057,2.47049914,236.55,236.49,19.2284]
[1732605672255,2.47049914,236.57,236.5,42.75190086]
[1732605672631,2.47049914,236.54,236.5,42.75190086]
[1732605672831,2.47049914,236.56,236.5,42.75190086]
[1732605673233,45.2224,236.56,236.49,15.0]
[1732605673453,2.47049914,236.54,236.52,20.0]
[1732605674527,45.2224,236.54,236.52,24.2278]
[1732605675131,45.2224,236.54,236.52,20.0]
[1732605675339,2.47049914,236.54,236.52,20.0]
[1732605675532,45.2224,236.56,236.52,20.0]
[1732605675733,2.47049914,236.54,236.51,4.2281]
[1732605675931,2.47049914,236.53,236.51,4.2281]
[1732605676738,45.2224,236.56,236.51,4.2281]
[1732605677261,2.47049914,236.54,236.51,4.2281]
[1732605677461,2.47049914,236.53,236.51,4.2281]
[1732605677961,2.47049914,236.55,236.51,4.2281]
[1732605678333,2.47049914,236.53,236.51,4.2281]
[1732605678853,2.47049914,236.53,236.49,15.0]
[1732605678854,2.47049914,236.5,236.49,15.0]
[1732605679050,45.2224,236.5,236.49,15.0]
[1732605680272,2.47049914,236.52,236.49,19.2283]
[1732605680853,2.47049914,236.57,236.51,42.75190086]
[1732605681568,2.47049914,236.62,236.56,42.75190086]
[1732605681748,2.47049914,236.66,236.6,42.75190086]
[1732605682066,2.47049914,236.7,236.65,42.75190086]
[1732605682268,6.0527,236.79,236.68,20.0]
[1732605682269,2.47049914,236.74,236.68,20.0]
[1732605682640,2.47049914,236.69,236.67,4.2252]
[1732605682948,2.47049914,236.67,236.63,20.0]
[1732605683334,2.47049914,236.67,236.61,4.2263]
[1732605683539,45.2224,236.62,236.57,20.0]
[1732605683763,42.75190086,236.6,236.57,20.0]
[1732605683944,42.75190086,236.59,236.57,20.0]
[1732605684341,42.75190086,236.61,236.56,4.2272]
[1732605684545,2.47049914,236.63,236.56,57.54720086]
[1732605684760,45.2224,236.61,236.59,20.0]
[1732605684945,42.75190086,236.63,236.59,20.0]
[1732605685262,2.47049914,236.62,236.59,4.2266]
[1732605685744,45.2224,236.63,236.59,4.2266]
[1732605685934,45.2224,236.63,236.59,24.2266]
[1732605686140,42.75190086,236.63,236.59,24.2266]
[1732605686545,2.47049914,236.63,236.59,24.2266]
[1732605686866,2.47049914,236.67,236.6,42.75190086]
[1732605687165,2.47049914,236.67,236.62,42.75190086]
[1732605687340,2.47049914,236.67,236.65,20.0]
[1732605687857,2.47049914,236.65,236.62,20.0]
[1732605688544,2.47049914,236.65,236.63,20.0]
[1732605688845,2.47049914,236.65,236.63,24.2259]
[1732605689044,2.47049914,236.65,236.58,42.75190086]
[1732605689255,2.47049914,236.61,236.59,4.2267]
[1732605689464,42.75190086,236.6,236.53,4.2277]
[1732605689647,42.75190086,236.58,236.53,4.2277]
[1732605690054,45.2224,236.58,236.53,4.2277]
[1732605690269,42.75190086,236.56,236.53,4.2277]
[1732605690555,2.47049914,236.52,236.51,4.228]
[1732605691069,45.2224,236.52,236.43,25.5767]
[1732605691257,45.2224,236.5,236.46,4.2289]
[1732605691474,45.2224,236.5,236.47,4.2288]
[1732605691965,2.47049914,236.52,236.5,4.2283]
[1732605692550,2.47049914,236.52,236.51,20.0]
[1732605692861,42.75190086,236.56,236.51,20.0]
[1732605692862,2.47049914,236.54,236.51,20.0]
[1732605693166,2.47049914,236.57,236.52,4.2279]
[1732605693466,2.47049914,236.57,236.52,14.7978]
[1732605694850,2.47049914,236.54,236.53,20.0]
[1732605695146,2.47049914,236.51,236.48,4.2285]
[1732605695359,42.75190086,236.5,236.48,4.2285]
[1732605695660,42.75190086,236.5,236.49,19.2284]
[1732605695861,42.75190086,236.5,236.49,15.0]
[1732605696065,2.47049914,236.51,236.49,19.2283]
[1732605696448,2.47049914,236.53,236.49,19.2283]
[1732605696643,2.47049914,236.56,236.49,19.2283]
[1732605696839,45.2224,236.56,236.49,19.2283]
[1732605697062,42.75190086,236.54,236.49,19.2283]
[1732605697365,45.2224,236.54,236.49,19.2283]
[1732605697551,6.342,236.65,236.49,19.2283]
[1732605697552,45.2224,236.56,236.49,19.2283]
[1732605697860,45.2224,236.56,236.53,20.0]
[1732605697861,2.47049914,236.56,236.53,20.0]
[1732605698068,2.47049914,236.54,236.53,20.0]
[1732605698250,42.75190086,236.54,236.49,29.7995]
[1732605698570,2.47049914,236.57,236.53,20.0]
[1732605698746,2.47049914,236.57,236.52,62.75190086]
[1732605698940,2.47049914,236.57,236.53,20.0]
[1732605699262,2.47049914,236.57,236.54,4.2276]
[1732605699447,2.47049914,236.57,236.55,20.0]
[1732605699645,2.47049914,236.62,236.57,20.0]
[1732605699950,2.47049914,236.62,236.56,42.75190086]
[1732605700150,2.47049914,236.62,236.57,20.0]
[1732605700151,45.2224,236.62,236.57,20.0]
[1732605701555,45.2224,236.62,236.58,4.2268]
[1732605702851,45.2224,236.6,236.58,4.2268]
[1732605703066,2.47049914,236.56,236.51,4.2281]
[1732605703979,42.75190086,236.55,236.51,4.2281]
[1732605704271,45.2224,236.55,236.51,4.2281]
[1732605704466,30.563,236.68,236.51,4.2281]
[1732605704467,45.2224,236.53,236.51,4.2281]
[1732605704977,2.47049914,236.53,236.51,4.2281]
[1732605706575,2.47049914,236.57,236.53,20.0]
[1732605707464,2.47049914,236.57,236.54,20.0]
[1732605708667,2.47049914,236.57,236.55,4.2274]
[1732605709868,45.2224,236.61,236.55,4.2274]
[1732605710068,2.47049914,236.63,236.58,20.0]
[1732605710371,10.0,236.76,236.55,14.7959]
[1732605710372,2.47049914,236.66,236.61,42.75190086]
[1732605710574,2.47049914,236.68,236.63,42.75190086]
[1732605710784,15.2508,236.75,236.56,36.84224257]
[1732605710785,2.47049914,236.66,236.65,20.0]
[1732605711360,2.47049914,236.66,236.62,20.0]
[1732605711564,4.2242,236.73,236.56,15.969]
[1732605711565,2.47049914,236.63,236.6,20.0]
[1732605711762,45.2224,236.65,236.6,20.0]
[1732605711963,2.47049914,236.63,236.62,20.0]
[1732605712278,2.47049914,236.67,236.64,20.0]
[1732605712778,2.47049914,236.67,236.65,20.0]
[1732605713266,2.47049914,236.67,236.64,20.0]
[1732605713871,2.47049914,236.67,236.65,4.2256]
[1732605714387,2.47049914,236.67,236.65,24.2256]
[1732605716284,2.47049914,236.67,236.65,4.2256]
[1732605716539,2.47049914,236.73,236.69,20.0]
[1732605716859,2.47049914,236.78,236.72,26.35121513]
[1732605717079,2.47049914,236.76,236.72,26.35121513]
[1732605717361,2.47049914,236.76,236.69,26.35121513]
[1732605717578,26.35121513,236.73,236.65,41.14091513]
[1732605717772,6.12,236.84,236.68,20.0]
[1732605717773,28.82171427,236.69,236.68,20.0]
[1732605717976,28.82171427,236.69,236.65,4.2256]
[1732605718283,2.47049914,236.66,236.65,4.2256]
[1732605718671,2.47049914,236.66,236.64,24.2257]
[1732605719871,2.47049914,236.65,236.64,4.2257]
[1732605720264,28.82171427,236.69,236.64,4.2257]
[1732605720464,2.47049914,236.67,236.64,4.2257]
[1732605720668,26.35121513,236.69,236.64,4.2257]
[1732605720669,2.47049914,236.69,236.65,26.35121513]
[1732605720867,2.47049914,236.67,236.64,4.2257]
[1732605721062,15.2508,236.75,236.64,4.2257]
[1732605721063,2.47049914,236.65,236.64,4.2257]
[1732605721286,2.47049914,236.6,236.57,4.227]
[1732605721670,26.35121513,236.62,236.57,4.227]
[1732605721978,2.47049914,236.6,236.57,4.227]
[1732605722492,2.47049914,236.58,236.57,4.227]
[1732605722873,2.47049914,236.6,236.57,4.227]
[1732605723103,2.47049914,236.58,236.57,4.227]
[1732605723902,2.47049914,236.66,236.57,26.35121513]
[1732605724195,2.47049914,236.66,236.53,30.80870086]
[1732605724196,2.47049914,236.66,236.64,26.35121513]
[1732605725081,2.47049914,236.72,236.67,20.0]
[1732605725399,2.47049914,236.74,236.72,20.0]
[1732605726086,2.47049914,236.74,236.73,20.0]
[1732605726488,30.49214701,265.19,236.73,46.35121513]
[1732605726489,2.47049914,236.78,236.73,46.35121513]
[1732605726789,2.47049914,236.78,236.77,26.35121513]
[1732605727294,2.47049914,236.84,236.8,20.0]
[1732605727595,2.47049914,236.83,236.8,46.35121513]
[1732605727987,2.47049914,236.83,236.81,20.0]
[1732605728498,2.47049914,236.78,236.75,20.0]
[1732605728677,2.47049914,236.69,236.66,26.35121513]
[1732605728882,2.47049914,236.72,236.66,26.35121513]
[1732605729086,2.47049914,236.76,236.71,26.35121513]
[1732605729305,28.82171427,236.83,236.74,26.35121513]
[1732605729470,2.47049914,236.8,236.76,26.35121513]
[1732605729670,2.47049914,236.83,236.76,26.35121513]
[1732605729879,2.47049914,236.81,236.76,26.35121513]
[1732605730076,2.47049914,236.83,236.77,4.2235]
[1732605730302,2.47049914,236.79,236.78,20.0]
[1732605730790,2.47049914,236.81,236.77,4.2235]
[1732605730992,2.47049914,236.83,236.77,4.2235]
[1732605731169,2.47049914,236.83,236.78,26.35121513]
[1732605731794,2.47049914,236.87,236.82,26.35121513]
[1732605732169,2.47049914,236.87,236.83,4.2224]
[1732605732376,2.47049914,236.87,236.84,26.35121513]
[1732605732789,2.47049914,236.9,236.86,46.35121513]
[1732605733381,2.47049914,236.88,236.87,20.0]
[1732605734197,2.47049914,236.88,236.8,26.35121513]
[1732605734198,26.24738314,236.88,236.8,26.35121513]
[1732605734401,2.47049914,236.82,236.81,20.0]
[1732605734591,2.47049914,236.81,236.78,30.57451513]
[1732605734776,2.47049914,236.79,236.78,4.2233]
[1732605734982,23.776884,236.88,236.78,4.2233]
[1732605734983,2.47049914,236.81,236.78,4.2233]
[1732605735383,2.47049914,236.79,236.74,26.35121513]
[1732605735703,2.47049914,236.81,236.76,26.35121513]
[1732605736193,2.47049914,236.81,236.77,4.2235]
[1732605736506,2.47049914,236.81,236.78,26.35121513]
[1732605736692,2.47049914,236.84,236.8,46.35121513]
[1732605736895,2.47049914,236.85,236.8,46.35121513]
[1732605737094,2.47049914,236.87,236.84,26.35121513]
[1732605738597,2.47049914,236.85,236.84,26.35121513]
[1732605738786,2.47049914,236.87,236.84,26.35121513]
[1732605738989,2.47049914,236.87,236.84,30.57341513]
[1732605739187,2.47049914,236.87,236.86,26.35121513]
[1732605739394,2.47049914,236.9,236.86,26.35121513]
[1732605739609,2.47049914,236.92,236.88,26.35121513]
[1732605739902,2.47049914,236.89,236.88,20.0]
[1732605740092,2.47049914,236.91,236.88,20.0]
[1732605740500,2.47049914,236.89,236.88,24.2213]
[1732605740803,2.47049914,236.91,236.88,24.2213]
[1732605741102,2.47049914,236.91,236.88,50.57251513]
[1732605741307,2.47049914,236.91,236.88,24.2213]
[1732605741796,2.47049914,236.89,236.88,20.0]
[1732605742503,2.47049914,236.87,236.83,20.0]
[1732605742703,2.47049914,236.87,236.86,20.0]
[1732605742880,26.35121513,236.92,236.86,20.0]
[1732605742881,2.47049914,236.89,236.87,20.0]
[1732605743285,2.47049914,236.91,236.87,20.0]
[1732605743490,2.47049914,236.87,236.86,26.35121513]
[1732605744003,2.47049914,236.9,236.86,26.35121513]
[1732605744194,2.47049914,236.87,236.86,20.0]
[1732605744601,2.47049914,236.87,236.86,24.2219]
[1732605744795,26.35121513,236.92,236.87,20.0]
[1732605744796,2.47049914,236.9,236.87,20.0]
[1732605745002,2.47049914,236.88,236.87,20.0]
[1732605745808,2.47049914,236.86,236.84,30.57331513]
[1732605746186,2.47049914,236.88,236.84,30.57331513]
[1732605746385,2.47049914,236.9,236.84,30.57331513]
[1732605746591,2.47049914,236.88,236.84,30.57331513]
[1732605746793,2.47049914,236.9,236.89,20.0]
[1732605747504,15.2508,237.01,236.91,20.0]
[1732605747505,2.47049914,236.92,236.91,20.0]
[1732605747681,2.47049914,236.92,236.91,46.35121513]
[1732605748814,2.47049914,236.92,236.91,50.57221513]
[1732605748984,2.47049914,236.92,236.91,61.12471513]
[1732605749388,2.47049914,236.92,236.91,50.57221513]
[1732605752801,2.47049914,236.92,236.91,4.221]
[1732605753007,2.47049914,236.93,236.92,20.0]
[1732605753902,2.47049914,236.93,236.91,30.57221513]
[1732605754216,2.47049914,236.92,236.91,30.57221513]
[1732605755111,2.47049914,236.99,236.94,20.0]
[1732605755408,2.47049914,236.99,236.98,26.35121513]
[1732605755797,2.47049914,236.99,236.97,26.35121513]
[1732605756196,2.47049914,236.99,236.98,4.2197]
[1732605756413,2.47049914,236.99,236.98,30.57091513]
[1732605758895,2.47049914,237.02,237.01,20.0]
[1732605759096,2.47049914,237.02,237.01,50.57041513]
[1732605760122,2.47049914,237.06,237.02,20.0]
[1732605760303,2.47049914,237.09,237.04,20.0]
[1732605760610,2.47049914,237.07,237.06,26.35121513]
[1732605760927,2.47049914,237.1,237.06,26.35121513]
[1732605761101,2.47049914,237.1,237.08,26.35121513]
[1732605762009,2.47049914,237.12,237.11,20.0]
[1732605762203,2.47049914,237.12,237.11,46.35121513]
[1732605762415,2.47049914,237.1,237.09,26.35121513]
[1732605762718,2.47049914,237.1,237.05,27.4447]
[1732605762719,2.47049914,237.06,237.05,4.2185]
[1732605763610,4.2166,237.16,237.05,50.56971513]
[1732605763611,2.47049914,237.08,237.05,50.56971513]
[1732605763818,2.47049914,237.08,237.06,26.35121513]
[1732605764405,2.47049914,237.08,237.05,24.2185]
[1732605764406,2.47049914,237.08,237.05,4.2185]
[1732605764606,10.0,237.21,237.05,4.2185]
[1732605764607,2.47049914,237.06,237.05,24.2185]
[1732605765825,2.47049914,237.06,237.05,20.0]
[1732605766025,2.47049914,237.05,237.04,20.0]
[1732605766212,2.47049914,237.01,237.0,4.2193]
[1732605766534,2.47049914,237.03,237.0,4.2193]
[1732605767118,2.47049914,237.05,237.0,30.57051513]
[1732605767321,2.47049914,237.05,237.01,26.35121513]
[1732605767526,2.47049914,237.05,237.0,4.2193]
[1732605767527,2.47049914,237.02,237.0,50.57051513]
[1732605768134,2.47049914,237.03,237.0,24.2193]
[1732605768306,2.47049914,237.03,237.01,20.0]
[1732605768913,2.47049914,237.03,237.02,24.219]
[1732605770609,2.47049914,237.0,236.93,16.41921539]
[1732605770814,48.58361539,237.12,236.91,10.5522]
[1732605770815,2.47049914,236.94,236.91,16.41921539]
[1732605771203,2.47049914,236.92,236.9,4.2211]
[1732605771628,2.47049914,236.92,236.9,20.64031539]
[1732605772323,2.47049914,236.92,236.91,26.28933529]
[1732605772523,2.47049914,236.94,236.91,26.28933529]
[1732605772715,2.47049914,236.94,236.93,20.0]
[1732605772910,2.47049914,236.94,236.93,46.28933529]
[1732605773231,2.47049914,236.96,236.93,46.28933529]
[1732605773601,10.0,237.09,236.93,46.28933529]
[1732605773602,2.47049914,236.94,236.93,46.28933529]
[1732605773914,2.47049914,236.94,236.93,50.50993529]
[1732605774635,2.47049914,236.94,236.93,24.2206]
[1732605775513,2.47049914,236.91,236.88,20.0]
[1732605775718,2.47049914,236.89,236.88,20.0]
[1732605776562,2.47049914,236.89,236.88,24.2214]
[1732605777124,2.47049914,236.91,236.88,24.2214]
[1732605777343,2.47049914,236.89,236.88,24.2214]
[1732605777508,2.47049914,236.89,236.88,4.2214]
[1732605777931,2.47049914,236.89,236.86,4.2219]
[1732605778232,2.47049914,236.89,236.82,10.5563]
[1732605778233,2.47049914,236.85,236.84,4.2221]
[1732605778823,2.47049914,236.83,236.8,4.2229]
[1732605779011,2.47049914,236.81,236.78,4.2231]